[Event "Titled Tuesday Blitz July 25 Early 2023"]
[White "Plotkin, Mark"]
[Black "Eynullayev, Atilla"]
[WhiteFideId "2611651"]
[BlackFideId "13413570"]
[WhiteElo "2813"]
[BlackElo "2530"]
[Result "1-0"]
[Round "2"]
[TimeControl "180+2"]
[Date "2023.07.25"]
[WhiteClock "0:00:42"]
[BlackClock "0:00:49"]
[Board "61"]

1. c4 {[%clk 0:03:00]}  e5 {[%clk 0:02:51]} 2. Nc3 {[%clk 0:03:00]}  Nf6 {[%clk 0:02:51]} 3. Nf3 {[%clk 0:02:59]}  Nc6 {[%clk 0:02:49]} 4. e4 {[%clk 0:02:58]}  Bb4 {[%clk 0:02:47]} 5. d3 {[%clk 0:02:55]}  O-O {[%clk 0:02:46]} 6. g3 {[%clk 0:02:52]}  d6 {[%clk 0:02:43]} 7. Bg2 {[%clk 0:02:52]}  a6 {[%clk 0:02:44]} 8. O-O {[%clk 0:02:49]}  Rb8 {[%clk 0:02:29]} 9. Ne2 {[%clk 0:02:36]}  b5 {[%clk 0:02:27]} 10. a3 {[%clk 0:02:28]}  Bc5 {[%clk 0:02:27]} 11. b4 {[%clk 0:02:26]}  Bb6 {[%clk 0:02:22]} 12. cxb5 {[%clk 0:02:23]}  axb5 {[%clk 0:02:21]} 13. d4 {[%clk 0:02:19]}  exd4 {[%clk 0:01:34]} 14. Nfxd4 {[%clk 0:02:14]}  Nxd4 {[%clk 0:01:34]} 15. Nxd4 {[%clk 0:02:15]}  c5 {[%clk 0:01:22]} 16. Nc6 {[%clk 0:02:13]}  Qc7 {[%clk 0:01:22]} 17. Nxb8 {[%clk 0:02:14]}  Qxb8 {[%clk 0:01:23]} 18. Bf4 {[%clk 0:02:10]}  Bc7 {[%clk 0:01:23]} 19. Rc1 {[%clk 0:01:46]}  c4 {[%clk 0:01:23]} 20. Qd4 {[%clk 0:01:41]}  Nd7 {[%clk 0:01:20]} 21. a4 {[%clk 0:01:31]}  Ba6 {[%clk 0:01:19]} 22. axb5 {[%clk 0:01:30]}  Bxb5 {[%clk 0:01:19]} 23. Rfd1 {[%clk 0:01:28]}  Ne5 {[%clk 0:01:19]} 24. Bxe5 {[%clk 0:01:24]}  dxe5 {[%clk 0:01:18]} 25. Qc5 {[%clk 0:01:25]}  Bb6 {[%clk 0:01:00]} 26. Qd6 {[%clk 0:01:20]}  Bd4 {[%clk 0:00:56]} 27. Qxb8 {[%clk 0:01:13]}  Rxb8 {[%clk 0:00:57]} 28. Bf1 {[%clk 0:01:14]}  c3 {[%clk 0:00:57]} 29. Bxb5 {[%clk 0:01:07]}  Rxb5 {[%clk 0:00:57]} 30. Rxc3 {[%clk 0:01:08]}  h5 {[%clk 0:00:53]} 31. Rb3 {[%clk 0:01:06]}  Kf8 {[%clk 0:00:53]} 32. Kf1 {[%clk 0:01:06]}  Ke7 {[%clk 0:00:54]} 33. Rc1 {[%clk 0:01:04]}  Kd7 {[%clk 0:00:53]} 34. Ke2 {[%clk 0:01:03]}  g5 {[%clk 0:00:53]} 35. f3 {[%clk 0:01:01]}  f6 {[%clk 0:00:52]} 36. h3 {[%clk 0:01:00]}  Bb6 {[%clk 0:00:47]} 37. Kd3 {[%clk 0:00:55]}  Bf2 {[%clk 0:00:47]} 38. g4 {[%clk 0:00:53]}  h4 {[%clk 0:00:48]} 39. Kc4 {[%clk 0:00:51]}  Rb8 {[%clk 0:00:48]} 40. Rd1+ {[%clk 0:00:50]}  Bd4 {[%clk 0:00:49]} 41. Rxd4+ {[%clk 0:00:46]}  exd4 {[%clk 0:00:49]} 42. Kxd4 {[%clk 0:00:47]}  Rb5 {[%clk 0:00:48]} 43. Kc4 {[%clk 0:00:46]}  Kc6 {[%clk 0:00:48]} 44. Ra3 {[%clk 0:00:42]}  Re5 {[%clk 0:00:48]} 45. Ra6+ {[%clk 0:00:41]}  Kb7 {[%clk 0:00:49]} 46. Rxf6 {[%clk 0:00:42]} 1-0


[Site "https://www.chess.com"]

[Event "Titled Tuesday Blitz July 25 Early 2023"]
[White "Sidletskyi, Ivan"]
[Black "Ashraf, Artin"]
[WhiteFideId "14156024"]
[BlackFideId "22514805"]
[WhiteElo "2530"]
[BlackElo "2799"]
[Result "0-1"]
[Round "2"]
[TimeControl "180+2"]
[Date "2023.07.25"]
[WhiteClock "0:00:03"]
[BlackClock "0:00:04"]
[Board "62"]

1. e4 {[%clk 0:03:00]}  c5 {[%clk 0:03:00]} 2. Nf3 {[%clk 0:03:01]}  d6 {[%clk 0:02:59]} 3. d4 {[%clk 0:03:00]}  cxd4 {[%clk 0:03:00]} 4. Nxd4 {[%clk 0:03:01]}  Nf6 {[%clk 0:03:01]} 5. Nc3 {[%clk 0:03:01]}  a6 {[%clk 0:03:01]} 6. Bg5 {[%clk 0:03:02]}  e6 {[%clk 0:03:01]} 7. f4 {[%clk 0:03:02]}  h6 {[%clk 0:03:01]} 8. Bh4 {[%clk 0:03:02]}  Qb6 {[%clk 0:03:01]} 9. Qd2 {[%clk 0:03:02]}  Qxb2 {[%clk 0:03:00]} 10. Rb1 {[%clk 0:03:03]}  Qa3 {[%clk 0:03:00]} 11. f5 {[%clk 0:03:03]}  Nc6 {[%clk 0:02:25]} 12. fxe6 {[%clk 0:03:02]}  fxe6 {[%clk 0:02:26]} 13. Bc4 {[%clk 0:02:49]}  Qc5 {[%clk 0:02:22]} 14. Nxe6 {[%clk 0:02:30]}  Qxc4 {[%clk 0:02:09]} 15. Nc7+ {[%clk 0:02:30]}  Kf7 {[%clk 0:01:11]} 16. Nxa8 {[%clk 0:02:21]}  g5 {[%clk 0:01:05]} 17. Nb6 {[%clk 0:02:00]}  Qe6 {[%clk 0:01:04]} 18. Nxc8 {[%clk 0:01:41]}  Qxc8 {[%clk 0:00:49]} 19. Bg3 {[%clk 0:01:06]}  Be7 {[%clk 0:00:33]} 20. O-O {[%clk 0:01:02]}  Re8 {[%clk 0:00:33]} 21. Nd5 {[%clk 0:00:56]}  Kg6 {[%clk 0:00:32]} 22. Nxe7+ {[%clk 0:00:44]}  Rxe7 {[%clk 0:00:32]} 23. Qxd6 {[%clk 0:00:42]}  Re6 {[%clk 0:00:32]} 24. Qd3 {[%clk 0:00:36]}  Nxe4 {[%clk 0:00:31]} 25. Rfe1 {[%clk 0:00:24]}  Qe8 {[%clk 0:00:18]} 26. Rxb7 {[%clk 0:00:22]}  h5 {[%clk 0:00:12]} 27. Rb6 {[%clk 0:00:12]}  h4 {[%clk 0:00:11]} 28. Bf2 {[%clk 0:00:11]}  Kh6 {[%clk 0:00:09]} 29. Be3 {[%clk 0:00:07]}  Nf6 {[%clk 0:00:06]} 30. Qd2 {[%clk 0:00:04]}  Kh5 {[%clk 0:00:06]} 31. Qe2+ {[%clk 0:00:03]}  Kg6 {[%clk 0:00:06]} 32. Qd3+ {[%clk 0:00:03]}  Kh5 {[%clk 0:00:06]} 33. Rb3 {[%clk 0:00:04]}  Ng4 {[%clk 0:00:05]} 34. Qd2 {[%clk 0:00:03]}  Kg6 {[%clk 0:00:04]} 35. h3 {[%clk 0:00:02]}  Nf6 {[%clk 0:00:04]} 36. Bf2 {[%clk 0:00:02]}  Ne4 {[%clk 0:00:04]} 37. Qd3 {[%clk 0:00:02]}  Kh6 {[%clk 0:00:04]} 38. Be3 {[%clk 0:00:03]}  Ng3 {[%clk 0:00:03]} 39. Qd2 {[%clk 0:00:01]}  Kg6 {[%clk 0:00:03]} 40. Rbb1 {[%clk 0:00:01]}  Ne5 {[%clk 0:00:03]} 41. Bxg5 {[%clk 0:00:01]}  Nc4 {[%clk 0:00:03]} 42. Qd3+ {[%clk 0:00:02]}  Kxg5 {[%clk 0:00:03]} 43. Rxe6 {[%clk 0:00:02]}  Qxe6 {[%clk 0:00:04]} 44. Qc3 {[%clk 0:00:02]}  Ne2+ {[%clk 0:00:03]} 45. Kf2 {[%clk 0:00:03]}  Nxc3 {[%clk 0:00:04]} 46. Rb5+ {[%clk 0:00:03]}  axb5 {[%clk 0:00:04]} 0-1


[Site "https://www.chess.com"]

[Event "Titled Tuesday Blitz July 25 Early 2023"]
[White "Hambleton, Aman"]
[Black "Guliev, Logman"]
[WhiteFideId "2606577"]
[BlackFideId "13400061"]
[WhiteElo "2798"]
[BlackElo "2529"]
[Result "1-0"]
[Round "2"]
[TimeControl "180+2"]
[Date "2023.07.25"]
[WhiteClock "0:00:07"]
[BlackClock "0:00:05"]
[Board "63"]

1. d4 {[%clk 0:03:00]}  Nf6 {[%clk 0:02:58]} 2. Bf4 {[%clk 0:03:00]}  e6 {[%clk 0:02:57]} 3. e3 {[%clk 0:03:00]}  b6 {[%clk 0:02:57]} 4. Nf3 {[%clk 0:02:59]}  Bb7 {[%clk 0:02:57]} 5. h3 {[%clk 0:02:58]}  c5 {[%clk 0:02:57]} 6. c3 {[%clk 0:02:59]}  Nc6 {[%clk 0:02:56]} 7. Nbd2 {[%clk 0:02:57]}  d5 {[%clk 0:02:56]} 8. Bd3 {[%clk 0:02:48]}  Bd6 {[%clk 0:02:54]} 9. O-O {[%clk 0:02:14]}  Bxf4 {[%clk 0:02:50]} 10. exf4 {[%clk 0:02:15]}  cxd4 {[%clk 0:02:49]} 11. cxd4 {[%clk 0:02:16]}  O-O {[%clk 0:02:48]} 12. a3 {[%clk 0:02:16]}  g6 {[%clk 0:02:45]} 13. Qe2 {[%clk 0:02:05]}  Rc8 {[%clk 0:02:44]} 14. Rac1 {[%clk 0:01:56]}  Nh5 {[%clk 0:02:38]} 15. g3 {[%clk 0:01:55]}  Qf6 {[%clk 0:02:37]} 16. Qe3 {[%clk 0:01:43]}  Rc7 {[%clk 0:02:05]} 17. Rc3 {[%clk 0:01:31]}  Rfc8 {[%clk 0:02:05]} 18. Rfc1 {[%clk 0:01:32]}  Qe7 {[%clk 0:02:00]} 19. Be2 {[%clk 0:01:08]}  Na5 {[%clk 0:01:58]} 20. b4 {[%clk 0:00:55]}  Rxc3 {[%clk 0:01:35]} 21. Rxc3 {[%clk 0:00:56]}  Nc4 {[%clk 0:01:27]} 22. Nxc4 {[%clk 0:00:39]}  Qc7 {[%clk 0:01:17]} 23. Nxb6 {[%clk 0:00:15]}  Qxc3 {[%clk 0:01:06]} 24. Nxc8 {[%clk 0:00:15]}  Qa1+ {[%clk 0:01:03]} 25. Kg2 {[%clk 0:00:13]}  Bxc8 {[%clk 0:01:04]} 26. Qb3 {[%clk 0:00:03]}  Qc1 {[%clk 0:00:55]} 27. b5 {[%clk 0:00:03]}  Nf6 {[%clk 0:00:53]} 28. a4 {[%clk 0:00:03]}  Ne4 {[%clk 0:00:53]} 29. a5 {[%clk 0:00:03]}  Nc3 {[%clk 0:00:47]} 30. Bf1 {[%clk 0:00:02]}  Ne4 {[%clk 0:00:37]} 31. b6 {[%clk 0:00:02]}  axb6 {[%clk 0:00:36]} 32. a6 {[%clk 0:00:02]}  Qc7 {[%clk 0:00:30]} 33. Bd3 {[%clk 0:00:02]}  Nd6 {[%clk 0:00:29]} 34. Qb4 {[%clk 0:00:02]}  Nc4 {[%clk 0:00:28]} 35. Ne5 {[%clk 0:00:02]}  Bxa6 {[%clk 0:00:27]} 36. Bb1 {[%clk 0:00:01]}  Nxe5 {[%clk 0:00:25]} 37. fxe5 {[%clk 0:00:02]}  Qc1 {[%clk 0:00:25]} 38. Qxb6 {[%clk 0:00:02]}  Qf1+ {[%clk 0:00:25]} 39. Kf3 {[%clk 0:00:03]}  Be2+ {[%clk 0:00:23]} 40. Ke3 {[%clk 0:00:03]}  Kg7 {[%clk 0:00:22]} 41. Qd8 {[%clk 0:00:02]}  Qxb1 {[%clk 0:00:07]} 42. Qf6+ {[%clk 0:00:03]}  Kh6 {[%clk 0:00:07]} 43. Qf4+ {[%clk 0:00:02]}  g5 {[%clk 0:00:06]} 44. Qf6+ {[%clk 0:00:02]}  Qg6 {[%clk 0:00:07]} 45. Qxg6+ {[%clk 0:00:02]}  Kxg6 {[%clk 0:00:06]} 46. Kxe2 {[%clk 0:00:03]}  Kf5 {[%clk 0:00:07]} 47. Kf3 {[%clk 0:00:03]}  h5 {[%clk 0:00:07]} 48. g4+ {[%clk 0:00:03]}  hxg4+ {[%clk 0:00:06]} 49. hxg4+ {[%clk 0:00:04]}  Kg6 {[%clk 0:00:07]} 50. Ke3 {[%clk 0:00:04]}  f5 {[%clk 0:00:07]} 51. exf6 {[%clk 0:00:03]}  Kxf6 {[%clk 0:00:08]} 52. f4 {[%clk 0:00:03]}  Kg6 {[%clk 0:00:06]} 53. Kf3 {[%clk 0:00:03]}  Kf6 {[%clk 0:00:06]} 54. fxg5+ {[%clk 0:00:02]}  Kxg5 {[%clk 0:00:06]} 55. Kg3 {[%clk 0:00:03]}  Kg6 {[%clk 0:00:06]} 56. Kf4 {[%clk 0:00:04]}  Kf6 {[%clk 0:00:06]} 57. g5+ {[%clk 0:00:05]}  Kg6 {[%clk 0:00:07]} 58. Ke5 {[%clk 0:00:05]}  Kf7 {[%clk 0:00:06]} 59. g6+ {[%clk 0:00:06]}  Kxg6 {[%clk 0:00:06]} 60. Kxe6 {[%clk 0:00:07]}  Kg7 {[%clk 0:00:04]} 61. Kxd5 {[%clk 0:00:07]}  Kf8 {[%clk 0:00:05]} 62. Kd6 {[%clk 0:00:07]} 1-0


[Site "https://www.chess.com"]

[Event "Titled Tuesday Blitz July 25 Early 2023"]
[White "Garakov, Mikhael"]
[Black "Fiorito, Joaquin"]
[WhiteFideId "4169034"]
[BlackFideId "180173"]
[WhiteElo "2525"]
[BlackElo "2795"]
[Result "1-0"]
[Round "2"]
[TimeControl "180+2"]
[Date "2023.07.25"]
[WhiteClock "0:00:12"]
[BlackClock "0:00:18"]
[Board "64"]

1. e4 {[%clk 0:03:00]}  c5 {[%clk 0:03:00]} 2. Nf3 {[%clk 0:03:00]}  d6 {[%clk 0:03:00]} 3. d4 {[%clk 0:03:00]}  cxd4 {[%clk 0:03:01]} 4. Nxd4 {[%clk 0:03:01]}  Nf6 {[%clk 0:03:02]} 5. Nc3 {[%clk 0:03:01]}  a6 {[%clk 0:03:02]} 6. f4 {[%clk 0:03:01]}  e6 {[%clk 0:03:00]} 7. Qf3 {[%clk 0:03:00]}  Be7 {[%clk 0:02:54]} 8. g4 {[%clk 0:02:59]}  Qc7 {[%clk 0:02:48]} 9. g5 {[%clk 0:02:58]}  Nfd7 {[%clk 0:02:49]} 10. Be3 {[%clk 0:02:50]}  b5 {[%clk 0:02:48]} 11. a3 {[%clk 0:02:32]}  Nc6 {[%clk 0:02:45]} 12. h4 {[%clk 0:02:17]}  Bb7 {[%clk 0:02:46]} 13. O-O-O {[%clk 0:02:12]}  b4 {[%clk 0:02:29]} 14. axb4 {[%clk 0:02:12]}  Nxb4 {[%clk 0:02:30]} 15. f5 {[%clk 0:02:00]}  Ne5 {[%clk 0:01:53]} 16. Qg2 {[%clk 0:01:42]}  Nc4 {[%clk 0:01:26]} 17. Bxc4 {[%clk 0:01:41]}  Qxc4 {[%clk 0:01:27]} 18. g6 {[%clk 0:01:37]}  hxg6 {[%clk 0:01:25]} 19. fxe6 {[%clk 0:01:37]}  fxe6 {[%clk 0:00:54]} 20. Kb1 {[%clk 0:01:16]}  Bf6 {[%clk 0:00:33]} 21. Qxg6+ {[%clk 0:01:08]}  Ke7 {[%clk 0:00:34]} 22. Rhf1 {[%clk 0:01:00]}  Raf8 {[%clk 0:00:33]} 23. e5 {[%clk 0:01:00]}  dxe5 {[%clk 0:00:24]} 24. Nb3 {[%clk 0:00:59]}  Nd5 {[%clk 0:00:24]} 25. Bc5+ {[%clk 0:00:51]}  Kd7 {[%clk 0:00:24]} 26. Ne4 {[%clk 0:00:44]}  Rc8 {[%clk 0:00:23]} 27. Nxf6+ {[%clk 0:00:35]}  gxf6 {[%clk 0:00:24]} 28. Qf7+ {[%clk 0:00:29]}  Kc6 {[%clk 0:00:19]} 29. Na5+ {[%clk 0:00:17]}  Kxc5 {[%clk 0:00:18]} 30. Nxc4 {[%clk 0:00:17]}  Kxc4 {[%clk 0:00:19]} 31. Qxb7 {[%clk 0:00:18]}  Rc7 {[%clk 0:00:17]} 32. Qxa6+ {[%clk 0:00:17]}  Kc5 {[%clk 0:00:17]} 33. Qa5+ {[%clk 0:00:15]}  Kd6 {[%clk 0:00:17]} 34. Rxd5+ {[%clk 0:00:14]}  exd5 {[%clk 0:00:17]} 35. Rxf6+ {[%clk 0:00:14]}  Ke7 {[%clk 0:00:18]} 36. Qb6 {[%clk 0:00:12]} 1-0


[Site "https://www.chess.com"]

[Event "Titled Tuesday Blitz July 25 Early 2023"]
[White "vishwa_vijeta"]
[Black "Lobanov, Sergei"]
[BlackFideId "24183750"]
[WhiteElo "2525"]
[BlackElo "2791"]
[Result "1-0"]
[Round "2"]
[TimeControl "180+2"]
[Date "2023.07.25"]
[WhiteClock "0:00:05"]
[BlackClock "0:00:01"]
[Board "65"]

1. e4 {[%clk 0:03:00]}  e5 {[%clk 0:02:59]} 2. Nf3 {[%clk 0:03:00]}  Nc6 {[%clk 0:03:00]} 3. d4 {[%clk 0:03:00]}  exd4 {[%clk 0:03:00]} 4. Nxd4 {[%clk 0:03:00]}  Nf6 {[%clk 0:03:00]} 5. Nxc6 {[%clk 0:03:00]}  bxc6 {[%clk 0:03:00]} 6. e5 {[%clk 0:03:00]}  Qe7 {[%clk 0:03:01]} 7. Qe2 {[%clk 0:03:01]}  Nd5 {[%clk 0:03:01]} 8. h4 {[%clk 0:02:59]}  f6 {[%clk 0:02:56]} 9. c4 {[%clk 0:02:54]}  Ba6 {[%clk 0:02:53]} 10. exf6 {[%clk 0:02:15]}  Qxe2+ {[%clk 0:02:53]} 11. Bxe2 {[%clk 0:02:15]}  Nxf6 {[%clk 0:02:53]} 12. Nc3 {[%clk 0:02:15]}  Kf7 {[%clk 0:02:43]} 13. b3 {[%clk 0:02:06]}  Bc5 {[%clk 0:02:39]} 14. Be3 {[%clk 0:01:44]}  Bxe3 {[%clk 0:02:37]} 15. fxe3 {[%clk 0:01:45]}  Rhe8 {[%clk 0:02:37]} 16. Kd2 {[%clk 0:01:43]}  c5 {[%clk 0:02:34]} 17. Bf3 {[%clk 0:01:40]}  Rab8 {[%clk 0:02:34]} 18. g4 {[%clk 0:01:38]}  Bb7 {[%clk 0:02:33]} 19. Bxb7 {[%clk 0:01:36]}  Rxb7 {[%clk 0:02:34]} 20. g5 {[%clk 0:01:36]}  Ne4+ {[%clk 0:02:35]} 21. Nxe4 {[%clk 0:01:36]}  Rxe4 {[%clk 0:02:36]} 22. Raf1+ {[%clk 0:01:35]}  Ke7 {[%clk 0:02:22]} 23. Rf5 {[%clk 0:01:21]}  Rb6 {[%clk 0:01:17]} 24. Rxc5 {[%clk 0:00:55]}  Rd6+ {[%clk 0:01:07]} 25. Ke2 {[%clk 0:00:45]}  Kd8 {[%clk 0:01:07]} 26. Rh3 {[%clk 0:00:36]}  Rg4 {[%clk 0:01:06]} 27. Kf3 {[%clk 0:00:32]}  Rg1 {[%clk 0:01:05]} 28. Ra5 {[%clk 0:00:30]}  a6 {[%clk 0:01:05]} 29. Rg3 {[%clk 0:00:28]}  Rf1+ {[%clk 0:00:46]} 30. Ke2 {[%clk 0:00:27]}  Rh1 {[%clk 0:00:47]} 31. Rg4 {[%clk 0:00:26]}  Re6 {[%clk 0:00:47]} 32. Rf4 {[%clk 0:00:25]}  Rh3 {[%clk 0:00:46]} 33. e4 {[%clk 0:00:25]}  Kc8 {[%clk 0:00:40]} 34. Raf5 {[%clk 0:00:22]}  Rd6 {[%clk 0:00:28]} 35. Rf7 {[%clk 0:00:20]}  Rdd3 {[%clk 0:00:26]} 36. Rf2 {[%clk 0:00:17]}  Rde3+ {[%clk 0:00:20]} 37. Kd2 {[%clk 0:00:16]}  Rxe4 {[%clk 0:00:20]} 38. Rxg7 {[%clk 0:00:16]}  Rd4+ {[%clk 0:00:20]} 39. Kc2 {[%clk 0:00:16]}  Rhxh4 {[%clk 0:00:18]} 40. Kc3 {[%clk 0:00:16]}  Rd6 {[%clk 0:00:14]} 41. Rf8+ {[%clk 0:00:16]}  Kb7 {[%clk 0:00:15]} 42. Rff7 {[%clk 0:00:17]}  Rh3+ {[%clk 0:00:14]} 43. Kb4 {[%clk 0:00:16]}  a5+ {[%clk 0:00:10]} 44. Ka3 {[%clk 0:00:16]}  Kc6 {[%clk 0:00:08]} 45. Rxh7 {[%clk 0:00:15]}  Rg3 {[%clk 0:00:09]} 46. Rhg7 {[%clk 0:00:15]}  Rg2 {[%clk 0:00:09]} 47. Rf6 {[%clk 0:00:15]}  Rxf6 {[%clk 0:00:05]} 48. gxf6 {[%clk 0:00:16]}  Rf2 {[%clk 0:00:05]} 49. f7 {[%clk 0:00:13]}  d6 {[%clk 0:00:05]} 50. Rh7 {[%clk 0:00:12]}  Kb6 {[%clk 0:00:05]} 51. Rg7 {[%clk 0:00:08]}  Kc5 {[%clk 0:00:05]} 52. Rg5+ {[%clk 0:00:06]}  Kb6 {[%clk 0:00:04]} 53. Rg7 {[%clk 0:00:06]}  Kc6 {[%clk 0:00:04]} 54. Rh7 {[%clk 0:00:06]}  Kb6 {[%clk 0:00:05]} 55. b4 {[%clk 0:00:04]}  axb4+ {[%clk 0:00:02]} 56. Kxb4 {[%clk 0:00:05]}  c5+ {[%clk 0:00:02]} 57. Kc3 {[%clk 0:00:05]}  Rf3+ {[%clk 0:00:01]} 58. Kd2 {[%clk 0:00:05]} 1-0


[Site "https://www.chess.com"]

[Event "Titled Tuesday Blitz July 25 Early 2023"]
[White "Mortazavi, Ali"]
[Black "Elsa167"]
[WhiteFideId "401323"]
[WhiteElo "2519"]
[BlackElo "2788"]
[Result "0-1"]
[Round "2"]
[TimeControl "180+2"]
[Date "2023.07.25"]
[WhiteClock "0:00:01"]
[BlackClock "0:00:04"]
[Board "67"]

1. Nf3 {[%clk 0:02:58]}  f5 {[%clk 0:02:58]} 2. d3 {[%clk 0:02:57]}  d6 {[%clk 0:02:57]} 3. e4 {[%clk 0:02:47]}  e5 {[%clk 0:02:57]} 4. Nc3 {[%clk 0:02:18]}  Nf6 {[%clk 0:02:57]} 5. exf5 {[%clk 0:01:56]}  Bxf5 {[%clk 0:02:57]} 6. g3 {[%clk 0:01:55]}  Nc6 {[%clk 0:02:47]} 7. Bg2 {[%clk 0:01:55]}  Qd7 {[%clk 0:02:47]} 8. Bg5 {[%clk 0:01:46]}  Be7 {[%clk 0:02:46]} 9. d4 {[%clk 0:01:31]}  e4 {[%clk 0:02:37]} 10. Nh4 {[%clk 0:01:31]}  d5 {[%clk 0:02:31]} 11. Nxf5 {[%clk 0:01:26]}  Qxf5 {[%clk 0:02:32]} 12. Bf4 {[%clk 0:01:27]}  O-O-O {[%clk 0:02:09]} 13. h4 {[%clk 0:01:20]}  Kb8 {[%clk 0:01:55]} 14. Nb5 {[%clk 0:01:20]}  Bb4+ {[%clk 0:01:50]} 15. c3 {[%clk 0:01:19]}  Ba5 {[%clk 0:01:51]} 16. b4 {[%clk 0:01:16]}  Bb6 {[%clk 0:01:51]} 17. a4 {[%clk 0:01:13]}  a6 {[%clk 0:01:48]} 18. a5 {[%clk 0:01:13]}  Bxa5 {[%clk 0:01:42]} 19. Rxa5 {[%clk 0:00:50]}  axb5 {[%clk 0:01:41]} 20. Rxb5 {[%clk 0:00:49]}  Ne8 {[%clk 0:01:06]} 21. Qe2 {[%clk 0:00:43]}  Nd6 {[%clk 0:01:03]} 22. Rc5 {[%clk 0:00:36]}  h6 {[%clk 0:00:36]} 23. b5 {[%clk 0:00:36]}  Na5 {[%clk 0:00:36]} 24. Bh3 {[%clk 0:00:25]}  Qf7 {[%clk 0:00:35]} 25. Qa2 {[%clk 0:00:19]}  b6 {[%clk 0:00:25]} 26. Rxd5 {[%clk 0:00:19]}  g5 {[%clk 0:00:22]} 27. Be5 {[%clk 0:00:17]}  Rhf8 {[%clk 0:00:17]} 28. O-O {[%clk 0:00:11]}  gxh4 {[%clk 0:00:16]} 29. Ra1 {[%clk 0:00:10]}  hxg3 {[%clk 0:00:15]} 30. Bxg3 {[%clk 0:00:10]}  e3 {[%clk 0:00:15]} 31. fxe3 {[%clk 0:00:10]}  Qf3 {[%clk 0:00:13]} 32. Qg2 {[%clk 0:00:09]}  Qxe3+ {[%clk 0:00:12]} 33. Kh2 {[%clk 0:00:10]}  Rg8 {[%clk 0:00:10]} 34. c4 {[%clk 0:00:07]}  Ne4 {[%clk 0:00:08]} 35. Rxd8+ {[%clk 0:00:06]}  Rxd8 {[%clk 0:00:08]} 36. Re1 {[%clk 0:00:05]}  Qxg3+ {[%clk 0:00:09]} 37. Qxg3 {[%clk 0:00:06]}  Nxg3 {[%clk 0:00:10]} 38. Kxg3 {[%clk 0:00:07]}  Nxc4 {[%clk 0:00:10]} 39. Bg2 {[%clk 0:00:06]}  Na5 {[%clk 0:00:06]} 40. Re6 {[%clk 0:00:04]}  h5 {[%clk 0:00:04]} 41. Rh6 {[%clk 0:00:04]}  Nb7 {[%clk 0:00:04]} 42. d5 {[%clk 0:00:02]}  Nd6 {[%clk 0:00:02]} 43. Bf1 {[%clk 0:00:02]}  Rg8+ {[%clk 0:00:02]} 44. Kf2 {[%clk 0:00:02]}  Rf8+ {[%clk 0:00:03]} 45. Ke1 {[%clk 0:00:02]}  Rf5 {[%clk 0:00:03]} 46. Bg2 {[%clk 0:00:01]}  Kb7 {[%clk 0:00:04]} 0-1


[Site "https://www.chess.com"]

[Event "Titled Tuesday Blitz July 25 Early 2023"]
[White "qx4z"]
[Black "Korelskiy, Egor"]
[BlackFideId "34329064"]
[WhiteElo "2787"]
[BlackElo "2517"]
[Result "1-0"]
[Round "2"]
[TimeControl "180+2"]
[Date "2023.07.25"]
[WhiteClock "0:00:47"]
[BlackClock "0:00:03"]
[Board "68"]

1. d4 {[%clk 0:03:00]}  d5 {[%clk 0:02:54]} 2. Bf4 {[%clk 0:03:00]}  Nf6 {[%clk 0:02:53]} 3. e3 {[%clk 0:03:01]}  g6 {[%clk 0:02:53]} 4. Nc3 {[%clk 0:03:01]}  Bg7 {[%clk 0:02:51]} 5. h4 {[%clk 0:02:59]}  a6 {[%clk 0:02:47]} 6. Nf3 {[%clk 0:02:58]}  c5 {[%clk 0:02:39]} 7. Ne5 {[%clk 0:02:48]}  Nc6 {[%clk 0:02:32]} 8. Qd2 {[%clk 0:02:34]}  cxd4 {[%clk 0:02:27]} 9. exd4 {[%clk 0:02:35]}  Nh5 {[%clk 0:02:22]} 10. Nxc6 {[%clk 0:02:27]}  bxc6 {[%clk 0:02:20]} 11. Be3 {[%clk 0:02:27]}  O-O {[%clk 0:02:13]} 12. Be2 {[%clk 0:02:26]}  Nf6 {[%clk 0:02:01]} 13. h5 {[%clk 0:02:23]}  Bg4 {[%clk 0:01:56]} 14. f3 {[%clk 0:02:21]}  Bc8 {[%clk 0:01:47]} 15. Bh6 {[%clk 0:02:20]}  c5 {[%clk 0:01:44]} 16. Bxg7 {[%clk 0:02:15]}  Kxg7 {[%clk 0:01:44]} 17. hxg6 {[%clk 0:02:16]}  fxg6 {[%clk 0:01:43]} 18. Qh6+ {[%clk 0:02:15]}  Kg8 {[%clk 0:01:42]} 19. O-O-O {[%clk 0:02:11]}  cxd4 {[%clk 0:01:41]} 20. Rxd4 {[%clk 0:02:12]}  Bb7 {[%clk 0:01:24]} 21. Bd3 {[%clk 0:01:33]}  Qe8 {[%clk 0:01:13]} 22. Rg4 {[%clk 0:01:33]}  Kf7 {[%clk 0:00:36]} 23. Rxg6 {[%clk 0:01:29]}  Rg8 {[%clk 0:00:31]} 24. Rxf6+ {[%clk 0:01:22]}  exf6 {[%clk 0:00:29]} 25. Qxh7+ {[%clk 0:01:18]}  Kf8 {[%clk 0:00:21]} 26. Qh6+ {[%clk 0:01:18]}  Rg7 {[%clk 0:00:18]} 27. Qxf6+ {[%clk 0:01:10]}  Kg8 {[%clk 0:00:18]} 28. Bf5 {[%clk 0:00:58]}  Bc8 {[%clk 0:00:15]} 29. Nxd5 {[%clk 0:00:54]}  Bxf5 {[%clk 0:00:15]} 30. Qxf5 {[%clk 0:00:55]}  Qf7 {[%clk 0:00:03]} 31. Nf6+ {[%clk 0:00:52]}  Kf8 {[%clk 0:00:03]} 32. Rh8+ {[%clk 0:00:47]} 1-0


[Site "https://www.chess.com"]